bitfinex/quotes_BTCUSD_20251209
["timestamp","ask_amount","ask_price","bid_price","bid_amount"]
[1765299663543,0.01059703,94366.0,94359.0,0.01059782]
[1765299663722,0.01059703,94366.0,94361.0,0.22254817]
[1765299663723,0.27446625,94365.0,94361.0,0.22254817]
[1765299664149,0.06252299,94365.0,94360.0,0.01059771]
[1765299664348,0.02208798,94384.0,94355.0,0.07487138]
[1765299664559,0.21192344,94374.0,94372.0,0.01059636]
[1765299664708,0.0105949,94385.0,94377.0,0.0105958]
[1765299664909,0.21190516,94382.0,94377.0,0.0105958]
[1765299665115,0.22250833,94379.0,94376.0,0.21191762]
[1765299665312,0.01059658,94370.0,94367.0,0.08510684]
[1765299665493,0.006,94369.0,94367.0,0.08510684]
[1765299665707,0.01059658,94370.0,94367.0,0.08510684]
[1765299665907,0.21193511,94369.0,94367.0,0.08510684]
[1765299666110,0.21193511,94369.0,94356.0,0.07610538]
[1765299666111,0.21194972,94362.0,94352.0,0.07487138]
[1765299666377,0.21198438,94347.0,94343.0,0.07487138]
[1765299666649,0.21199465,94342.0,94341.0,0.07487138]
[1765299666852,0.01059816,94356.0,94341.0,0.001234]
[1765299667010,0.1116,94409.0,94357.0,0.01059804]
[1765299667011,0.06252299,94360.0,94357.0,0.01059804]
[1765299667211,0.06252299,94368.0,94367.0,0.002]
[1765299667842,0.36321755,94368.0,94367.0,0.002]
[1765299668171,0.06252299,94353.0,94348.0,0.01059905]
[1765299668395,0.06252299,94353.0,94345.0,0.07484737]
[1765299668603,0.06252299,94344.0,94343.0,0.07484737]
[1765299668743,0.06352299,94342.0,94341.0,0.004]
[1765299668956,0.27451989,94341.0,94339.0,0.07484737]
[1765299669161,0.02751973,94342.0,94339.0,0.22271794]
[1765299669162,0.01692,94342.0,94339.0,0.22271794]
[1765299669385,0.01692,94342.0,94341.0,0.28685632]
[1765299669595,0.06252299,94346.0,94345.0,0.01059939]
[1765299669784,0.07944299,94346.0,94345.0,0.01059939]
[1765299669982,0.07944299,94346.0,94343.0,0.001]
[1765299670183,0.06252299,94344.0,94343.0,0.001]
[1765299670601,0.01059973,94342.0,94339.0,0.00011824]
[1765299670801,0.00037887,94340.0,94339.0,0.00011824]
[1765299671052,0.07289642,94340.0,94339.0,0.00011824]
[1765299671405,0.08981642,94340.0,94339.0,0.00111824]
[1765299671636,0.08981642,94340.0,94339.0,0.00011824]
[1765299672002,0.08282186,94340.0,94339.0,0.00111824]
[1765299672214,0.07982186,94340.0,94339.0,0.00011824]
[1765299672623,0.06590186,94340.0,94339.0,0.00111824]
[1765299672881,0.08282186,94340.0,94339.0,0.00111824]
[1765299673091,0.06590186,94340.0,94339.0,0.00111824]
[1765299675035,0.08282186,94340.0,94339.0,0.00111824]
[1765299675460,0.08282186,94340.0,94323.0,0.09351547]
[1765299675461,0.06252299,94325.0,94323.0,0.09351547]
[1765299675660,0.21201263,94334.0,94309.0,0.01060344]
[1765299675661,0.06252299,94311.0,94309.0,0.01060344]
[1765299675890,0.06252299,94309.0,94306.0,0.01060377]
[1765299676111,0.01060366,94307.0,94306.0,0.00039437]
[1765299676291,0.01060344,94309.0,94306.0,0.00039437]
[1765299676542,0.21207189,94308.0,94306.0,0.00039437]
[1765299676773,0.06252299,94310.0,94307.0,0.21207333]
[1765299676982,0.21207333,94307.0,94306.0,0.00039437]
[1765299677378,0.22266644,94312.0,94306.0,0.00039437]
[1765299677379,0.06252299,94308.0,94306.0,0.00039437]
[1765299677537,0.06252299,94309.0,94306.0,0.21246784]
[1765299677738,0.06252299,94309.0,94306.0,0.01099814]
[1765299678053,0.21207108,94308.0,94306.0,0.00039437]
[1765299678257,0.21307333,94307.0,94306.0,0.00239437]
[1765299678465,0.21207333,94307.0,94306.0,0.00139437]
[1765299678643,0.01060344,94309.0,94306.0,0.00039437]
[1765299678843,0.06252299,94308.0,94306.0,0.00139437]
[1765299679056,0.06252299,94313.0,94311.0,0.01060321]
[1765299679258,0.21204454,94320.0,94316.0,0.01060265]
[1765299679427,0.07312553,94317.0,94314.0,0.22265991]
[1765299679627,0.01060243,94318.0,94314.0,0.01060287]
[1765299679832,0.01060287,94314.0,94311.0,0.001234]
[1765299680078,0.21206035,94313.0,94311.0,0.001234]
[1765299680246,0.21206052,94313.0,94311.0,0.001234]
[1765299680671,0.06252299,94318.0,94315.0,0.22265751]
[1765299680873,0.01060164,94325.0,94318.0,0.01060243]
[1765299681074,0.00037887,94340.0,94324.0,0.01060175]
[1765299681075,0.0106013,94328.0,94324.0,0.01060175]
[1765299681279,0.0106013,94328.0,94323.0,0.01060186]
[1765299681280,0.01060141,94327.0,94323.0,0.01060186]
[1765299681483,0.01060164,94325.0,94322.0,0.22264004]
[1765299681919,0.01060198,94322.0,94319.0,0.08510684]
[1765299682117,0.21204344,94321.0,94319.0,0.08510684]
[1765299682329,0.21205795,94314.0,94311.0,0.01060321]
[1765299682529,0.22267424,94309.0,94306.0,0.00039437]
[1765299682773,0.212072,94308.0,94306.0,0.00039437]
[1765299682949,0.06252299,94310.0,94308.0,0.01060355]
[1765299683297,0.07312631,94310.0,94307.0,0.21207186]
[1765299683498,0.21207306,94308.0,94306.0,0.00039437]
[1765299684663,0.06252299,94307.0,94306.0,0.00039437]
[1765299685426,0.06252299,94307.0,94306.0,0.00339437]
[1765299685847,0.06252299,94307.0,94306.0,0.00239437]
[1765299686293,0.06252299,94307.0,94306.0,0.00339437]
[1765299686713,0.06252299,94307.0,94306.0,0.00139437]
[1765299686924,0.06252299,94307.0,94306.0,0.00339437]
[1765299686925,0.06352299,94307.0,94306.0,0.00339437]
[1765299688363,0.08044299,94307.0,94306.0,0.00339437]
[1765299689210,0.06352299,94307.0,94306.0,0.00339437]
[1765299690268,0.06252299,94307.0,94306.0,0.00139437]
[1765299690500,0.06252299,94308.0,94306.0,0.00039437]
[1765299690705,0.002,94307.0,94306.0,0.00139437]
[1765299691460,0.22265166,94318.0,94315.0,0.01060276]
[1765299691696,0.06252299,94315.0,94313.0,0.21205828]
[1765299691901,0.27459415,94309.0,94299.0,0.0957114]
[1765299692122,0.27459415,94309.0,94301.0,0.01060434]
[1765299692123,0.21207266,94308.0,94301.0,0.01060434]
[1765299692323,0.06252299,94307.0,94306.0,0.00139437]
[1765299692954,0.06252299,94307.0,94306.0,0.00039437]
[1765299693355,0.06352299,94307.0,94306.0,0.00139437]
[1765299693528,0.06252299,94307.0,94306.0,0.00039437]
[1765299693931,0.06352299,94307.0,94306.0,0.00139437]
[1765299694135,0.06252299,94307.0,94306.0,0.00039437]
[1765299694668,0.06352299,94307.0,94306.0,0.00139437]
[1765299694808,0.08044299,94307.0,94306.0,0.00139437]
[1765299695254,0.06352299,94307.0,94306.0,0.00139437]
[1765299696266,0.27559632,94307.0,94306.0,0.00139437]
[1765299696892,0.001,94307.0,94306.0,0.21346995]
[1765299697608,0.001,94307.0,94306.0,0.00139437]
[1765299697786,0.001,94307.0,94306.0,0.21346995]
[1765299698589,0.001,94307.0,94306.0,0.00139437]
[1765299698590,0.28559088,94307.0,94306.0,0.00139437]
[1765299699055,0.27559632,94307.0,94306.0,0.00139437]
[1765299699550,0.6053043,94307.0,94306.0,0.00139437]
[1765299699947,0.06252299,94284.0,94282.0,0.00243008]
[1765299700123,0.21212731,94283.0,94282.0,0.00254831]
[1765299700323,0.06252299,94284.0,94282.0,0.00254831]
[1765299700675,0.21211927,94287.0,94282.0,0.00254831]
[1765299700676,0.06252299,94287.0,94286.0,0.21212056]
[1765299700911,0.00999456,94308.0,94286.0,0.08634084]
[1765299701031,0.50638727,94330.0,94295.0,0.01060501]
[1765299701032,0.06252299,94306.0,94295.0,0.01060501]
[1765299701234,0.01060456,94299.0,94295.0,0.001234]
[1765299701447,0.01060456,94299.0,94297.0,0.21209578]
[1765299701646,0.01060456,94299.0,94295.0,0.01183901]
[1765299701647,0.22269609,94299.0,94295.0,0.22393916]
[1765299702042,0.01060467,94298.0,94295.0,0.001234]
[1765299702486,0.22269352,94300.0,94296.0,0.212096]
[1765299702712,0.22269352,94300.0,94297.0,0.22270002]
[1765299702713,0.01060445,94300.0,94297.0,0.22270002]
[1765299702881,0.06252299,94301.0,94297.0,0.2239325]
[1765299703080,0.06252299,94302.0,94301.0,0.21208682]
[1765299703283,0.01060355,94308.0,94301.0,0.21208682]
[1765299703284,0.01060321,94311.0,94308.0,0.01060355]
[1765299703526,0.06252299,94313.0,94310.0,0.01060332]
[1765299703732,0.06252299,94311.0,94309.0,0.01060344]
[1765299703933,0.06252299,94310.0,94308.0,0.01060355]
[1765299704287,0.01060287,94314.0,94308.0,0.01060355]
[1765299704288,0.06252299,94314.0,94309.0,0.01060344]
[1765299704506,0.06252299,94312.0,94310.0,0.01060332]
[1765299704723,0.28518901,94312.0,94308.0,0.22357455]
[1765299704888,0.06252299,94310.0,94308.0,0.21307065]
[1765299705188,0.06252299,94311.0,94309.0,0.21206836]
[1765299705399,0.06252299,94311.0,94308.0,0.01160355]
[1765299705400,0.06252299,94309.0,94308.0,0.001]
[1765299705537,0.06252299,94309.0,94305.0,0.21207722]
[1765299705738,0.06252299,94311.0,94308.0,0.01060355]
[1765299705965,0.06252299,94311.0,94308.0,0.22267438]
[1765299706169,0.6087249,94333.0,94308.0,0.22267438]
[1765299706170,0.01060085,94332.0,94321.0,0.21204028]
[1765299706378,0.01692,94331.0,94328.0,0.0106013]
[1765299706573,0.00037887,94337.0,94334.0,0.01060063]
[1765299706782,0.00037887,94337.0,94321.0,0.001234]
[1765299706783,0.01060085,94332.0,94328.0,0.0106013]
[1765299707035,0.01060096,94331.0,94325.0,0.01060164]
[1765299707256,0.2226262,94329.0,94326.0,0.01060153]
[1765299707483,0.01060153,94326.0,94322.0,0.01060198]
[1765299707609,0.01060164,94325.0,94321.0,0.001234]
[1765299707810,0.01060299,94313.0,94299.0,0.07465186]
[1765299708061,0.01060299,94313.0,94291.0,0.10752]
[1765299708062,0.06252299,94320.0,94309.0,0.01060344]
[1765299708263,0.07312564,94316.0,94313.0,0.01060299]
[1765299708501,0.21205575,94315.0,94312.0,0.0106031]
[1765299708707,0.2851792,94316.0,94313.0,0.21205928]
[1765299708882,0.2851792,94316.0,94312.0,0.0106031]
[1765299709061,0.06252299,94317.0,94315.0,0.21205387]
[1765299709786,0.06252299,94324.0,94322.0,0.22263951]
[1765299709992,0.22262865,94328.0,94322.0,0.22263951]
[1765299709993,0.01692,94323.0,94322.0,0.22263951]
[1765299710239,0.01692,94330.0,94326.0,0.01060153]
[1765299710447,0.01692,94330.0,94327.0,0.01060141]
[1765299710664,0.01692,94330.0,94326.0,0.01060153]
[1765299710871,0.01692,94330.0,94327.0,0.01060141]
[1765299710872,0.06252299,94329.0,94327.0,0.01060141]
[1765299711130,0.06252299,94329.0,94325.0,0.22263386]
[1765299711131,0.22262806,94328.0,94325.0,0.22263386]
[1765299711302,0.21202862,94327.0,94324.0,0.2226347]
[1765299711660,0.21203123,94326.0,94323.0,0.22263881]
[1765299711859,0.002,94324.0,94323.0,0.22263881]
[1765299712246,0.01060141,94327.0,94324.0,0.22263544]
[1765299712457,0.003,94327.0,94326.0,0.2226296]
[1765299712657,0.003,94327.0,94325.0,0.22263389]
[1765299712862,0.28514884,94329.0,94326.0,0.21202975]
[1765299713081,0.07312418,94329.0,94326.0,0.01060153]
[1765299713539,0.0106013,94328.0,94321.0,0.01060209]
[1765299713746,0.22562977,94327.0,94325.0,0.001]
[1765299713955,0.003,94327.0,94325.0,0.21303087]
[1765299714360,0.003,94327.0,94325.0,0.001]
[1765299714820,0.27493247,94326.0,94325.0,0.001]
[1765299715051,0.06252299,94310.0,94308.0,0.01060355]
[1765299715256,0.01060332,94310.0,94307.0,0.22267631]
[1765299715467,0.06252299,94303.0,94297.0,0.08510684]
[1765299715668,0.06252299,94303.0,94297.0,0.08634084]
[1765299715669,0.21209357,94298.0,94297.0,0.08634084]
[1765299715879,0.01060445,94300.0,94297.0,0.08634084]
[1765299715880,0.2226944,94300.0,94297.0,0.08634084]
[1765299716088,0.01060591,94287.0,94284.0,0.07465186]
[1765299716283,0.01060524,94293.0,94286.0,0.22272629]
[1765299716425,0.0106049,94296.0,94293.0,0.01060524]
[1765299716629,0.06252299,94296.0,94294.0,0.22270712]
[1765299716832,0.06252299,94296.0,94294.0,0.22282535]
[1765299717032,0.00037887,94300.0,94299.0,0.21209132]
[1765299717239,0.27461528,94299.0,94295.0,0.01060501]
[1765299717431,0.06252299,94296.0,94294.0,0.00135223]
[1765299717639,0.06252299,94296.0,94294.0,0.21345371]
[1765299717836,0.06252299,94297.0,94295.0,0.21209873]
[1765299718096,0.06252299,94297.0,94294.0,0.00135223]
[1765299718097,0.27462048,94297.0,94294.0,0.00135223]
[1765299718247,0.28522234,94298.0,94294.0,0.01195735]
[1765299718468,0.21210032,94295.0,94294.0,0.00235223]
[1765299718679,0.27562158,94296.0,94294.0,0.00235223]
[1765299718859,0.27562158,94296.0,94294.0,0.00135223]
[1765299719049,0.27462158,94296.0,94294.0,0.00135223]
[1765299719247,0.27462158,94296.0,94294.0,0.00111823]
[1765299719681,0.27462158,94296.0,94294.0,0.00011823]
[1765299719894,0.27562158,94296.0,94294.0,0.00011823]
[1765299720119,0.27562158,94296.0,94294.0,0.00111823]
[1765299720997,0.07251755,94295.0,94294.0,0.00111823]
[1765299721219,0.06252299,94295.0,94294.0,0.00111823]
[1765299721422,0.001,94296.0,94294.0,0.00111823]
[1765299721423,0.001,94296.0,94295.0,0.21210032]
[1765299721736,0.001,94296.0,94295.0,0.23076949]
[1765299721939,0.21207462,94307.0,94303.0,0.01060411]
[1765299722137,0.21207462,94307.0,94295.0,0.21333432]
[1765299722138,0.01060422,94302.0,94297.0,0.21209439]
[1765299722287,0.21207078,94309.0,94304.0,0.22268261]
[1765299722491,0.01060355,94308.0,94305.0,0.01060389]
[1765299722710,0.07312688,94305.0,94302.0,0.01060422]
[1765299722913,0.010604,94304.0,94300.0,0.01060445]
[1765299723117,0.2226948,94300.0,94297.0,0.001234]
[1765299723329,0.21209357,94298.0,94297.0,0.001234]
[1765299723634,0.22269501,94300.0,94297.0,0.001234]
[1765299723840,0.002,94302.0,94297.0,0.01183879]
[1765299723841,0.01260422,94302.0,94297.0,0.01183879]
[1765299724002,0.01060434,94301.0,94297.0,0.001234]
[1765299724207,0.2246903,94302.0,94301.0,0.04478]
[1765299724208,0.002,94302.0,94301.0,0.04478]
[1765299724416,0.2504,94390.0,94317.0,0.2120495]
[1765299724417,0.08510684,94319.0,94317.0,0.2120495]
[1765299724615,0.0106004,94336.0,94328.0,0.22262661]
[1765299724826,0.01060018,94338.0,94334.0,0.01060063]
[1765299725032,0.01692,94340.0,94335.0,0.01060051]
[1765299725251,0.01060029,94337.0,94332.0,0.01060085]
[1765299725453,0.01692,94340.0,94333.0,0.01060074]
[1765299725678,0.01060018,94338.0,94334.0,0.01060063]
[1765299725992,0.01060018,94338.0,94330.0,0.01060108]
[1765299725993,0.22262152,94331.0,94328.0,0.001234]
[1765299727031,0.01060006,94339.0,94329.0,0.01060119]
[1765299727229,0.01060085,94332.0,94329.0,0.001234]
[1765299727433,0.21201937,94331.0,94329.0,0.001234]
[1765299727857,0.01060085,94332.0,94329.0,0.001234]
[1765299728087,0.002,94337.0,94334.0,0.01060063]
[1765299728226,0.002,94337.0,94329.0,0.01283519]
[1765299728227,0.01060074,94333.0,94329.0,0.01283519]
[1765299728440,0.01060108,94330.0,94323.0,0.01060186]
[1765299728681,0.01060085,94332.0,94329.0,0.01060119]
[1765299728894,0.002,94331.0,94329.0,0.01160119]
[1765299729104,0.001,94331.0,94329.0,0.22262376]
[1765299729316,0.06252299,94338.0,94335.0,0.01060051]
[1765299729525,0.01060063,94334.0,94329.0,0.002234]
[1765299729736,0.01731412,94340.0,94332.0,0.01060085]
[1765299729737,0.01060051,94335.0,94332.0,0.01060085]
[1765299730060,0.01060085,94332.0,94329.0,0.002234]
[1765299730614,0.01060074,94333.0,94329.0,0.22385899]
[1765299730818,0.22260218,94339.0,94331.0,0.01060096]
[1765299731036,0.06252299,94338.0,94335.0,0.01060051]
[1765299731236,0.06352299,94338.0,94335.0,0.22260877]
[1765299731446,0.07450204,94338.0,94332.0,0.22261782]
[1765299731647,0.00037887,94338.0,94336.0,0.21200814]
[1765299731858,0.00037887,94338.0,94334.0,0.01060063]
[1765299732069,0.06290186,94338.0,94335.0,0.01060051]
[1765299732266,0.28850607,94338.0,94335.0,0.001]
[1765299732504,0.28850607,94338.0,94324.0,0.01060175]
[1765299732505,0.01060119,94329.0,94324.0,0.01060175]
[1765299732746,0.0106013,94328.0,94324.0,0.01060175]
[1765299732955,0.01060231,94319.0,94315.0,0.08510684]
[1765299733366,0.22265289,94318.0,94315.0,0.08510684]
[1765299733577,0.01060243,94318.0,94315.0,0.08510684]
[1765299733740,0.22265103,94318.0,94315.0,0.08510684]
[1765299733918,0.06252299,94317.0,94308.0,0.22267238]
[1765299734128,0.06252299,94317.0,94315.0,0.2120533]
[1765299734336,0.06252299,94334.0,94331.0,0.01060096]
[1765299734749,0.06252299,94336.0,94332.0,0.01060085]
[1765299734993,0.06252299,94336.0,94333.0,0.01060074]
[1765299735134,0.06252299,94337.0,94335.0,0.21200882]
[1765299735335,0.00039412,94340.0,94335.0,0.21200882]
[1765299735336,0.00039412,94340.0,94339.0,0.21200139]
[1765299735518,0.01692,94339.0,94337.0,0.22260582]
[1765299735720,0.00039412,94340.0,94339.0,0.21200139]
[1765299735997,0.00039412,94340.0,94339.0,0.25538539]
[1765299736468,0.00039412,94340.0,94339.0,0.21323539]
[1765299736686,0.00039412,94340.0,94339.0,0.31353286]
[1765299736899,0.00039412,94340.0,94339.0,0.14826539]
[1765299737106,0.00039412,94340.0,94339.0,0.27357949]
[1765299737330,0.00039412,94340.0,94339.0,0.14826539]
[1765299737559,0.00039412,94340.0,94339.0,0.25206539]
[1765299737799,0.00239412,94340.0,94339.0,0.25306539]
[1765299738470,0.00239412,94340.0,94339.0,0.27457949]
[1765299738687,0.00239412,94340.0,94339.0,0.54376539]
[1765299738904,4.12e-06,94340.0,94339.0,0.56527949]
[1765299740124,0.26,94353.0,94352.0,0.52418628]
[1765299740330,0.26,94353.0,94352.0,0.58275028]
[1765299740331,0.26011817,94353.0,94352.0,0.58275028]
[1765299740494,0.26011817,94353.0,94352.0,0.64388028]
[1765299740697,0.19284817,94353.0,94352.0,0.64388028]
[1765299741392,1e-08,94353.0,94352.0,0.64388028]
[1765299741606,0.0002234,94361.0,94352.0,0.64388028]
[1765299741607,1e-08,94361.0,94360.0,1.09284131]
[1765299741801,0.0148,94406.0,94389.0,0.21188909]
[1765299742005,0.0148,94406.0,94389.0,0.36672319]
[1765299742006,0.00051822,94390.0,94389.0,0.36672319]
[1765299742234,0.00051822,94390.0,94389.0,0.21188909]
[1765299743188,0.00051822,94390.0,94387.0,0.2224868]
[1765299743189,0.02370709,94390.0,94387.0,0.2224868]
[1765299743395,0.02370709,94390.0,94368.0,0.03178]
[1765299743396,0.01059479,94386.0,94368.0,0.03178]
[1765299743708,0.04141524,94382.0,94376.0,0.01059591]
[1765299743962,0.03119887,94382.0,94379.0,0.01059557]
[1765299744294,0.03119887,94382.0,94375.0,0.22251464]
[1765299744295,0.06252299,94377.0,94375.0,0.01059602]
[1765299744658,0.02253,94376.0,94372.0,0.01059636]
[1765299744822,0.02261887,94376.0,94374.0,0.21192277]
[1765299745024,0.02261887,94376.0,94373.0,0.22252058]
[1765299745288,0.02224,94374.0,94373.0,0.22252058]
[1765299745521,0.02224,94374.0,94372.0,0.22252113]
[1765299745522,0.04485887,94374.0,94372.0,0.01059636]
[1765299745732,0.23416502,94373.0,94367.0,0.01059692]
[1765299745917,0.23416502,94373.0,94362.0,0.01059748]
[1765299745918,0.02196,94367.0,94362.0,0.01059748]
[1765299746043,0.02196,94367.0,94366.0,0.21194074]
[1765299746044,0.02233887,94367.0,94366.0,0.21194074]
[1765299746452,0.02233887,94367.0,94361.0,0.01059759]
[1765299746453,0.01059726,94364.0,94360.0,0.001234]
[1765299746709,0.01059726,94364.0,94351.0,0.01059872]
[1765299746710,0.01059793,94358.0,94351.0,0.01059872]
[1765299746852,0.02168,94352.0,94348.0,0.01059905]
[1765299747050,0.2119701,94353.0,94347.0,0.01059917]
[1765299747051,0.03535,94349.0,94347.0,0.01059917]
[1765299747296,0.01367,94349.0,94346.0,0.22258494]
[1765299747505,0.06252299,94362.0,94360.0,0.01159771]
[1765299747744,0.09787299,94361.0,94360.0,0.001]
[1765299747958,0.06252299,94360.0,94359.0,0.21195646]
[1765299748233,0.03059,94361.0,94359.0,0.21195646]
[1765299748599,0.0214,94360.0,94358.0,0.01059793]
[1765299748779,0.0214,94360.0,94359.0,0.21195646]
[1765299749003,0.08364299,94359.0,94357.0,0.22255706]
[1765299749460,0.08364299,94358.0,94357.0,0.22255706]
[1765299749856,0.08364299,94358.0,94357.0,0.01059804]
[1765299750442,0.08364299,94358.0,94357.0,0.01159804]
[1765299750637,0.08364299,94358.0,94357.0,0.01059804]
[1765299751062,0.08564299,94358.0,94357.0,0.01159804]
[1765299751280,0.08509299,94358.0,94357.0,0.01159804]
[1765299751491,0.08509299,94358.0,94357.0,0.001]
[1765299751986,0.06452299,94358.0,94357.0,0.001]
[1765299752413,0.002,94358.0,94357.0,0.002234]
[1765299753105,0.02201,94358.0,94357.0,0.002234]
[1765299753326,0.02201,94358.0,94357.0,0.001]
[1765299754300,0.002,94358.0,94357.0,0.002234]
[1765299754762,0.02174,94358.0,94357.0,0.002234]
[1765299754995,0.0412,94358.0,94357.0,0.21296095]
[1765299755188,0.0412,94358.0,94357.0,0.001]
[1765299755425,0.06452299,94358.0,94357.0,0.042644]
[1765299755637,0.00139999,94390.0,94357.0,0.042644]
[1765299755638,0.01059456,94388.0,94368.0,0.21193624]
[1765299755860,0.01099434,94390.0,94368.0,0.442174]
[1765299755861,0.0004,94390.0,94368.0,0.442174]
[1765299756064,0.0004,94390.0,94389.0,0.001234]
[1765299756065,0.00051822,94390.0,94389.0,0.001234]
[1765299756705,0.02199822,94390.0,94389.0,0.001234]
[1765299756928,0.02199822,94390.0,94386.0,0.01059479]
[1765299757118,0.02999822,94390.0,94387.0,0.01059467]
[1765299757325,0.02121,94387.0,94385.0,0.0105949]
[1765299757471,0.02121,94387.0,94378.0,0.21191235]
[1765299757472,0.02121,94386.0,94378.0,0.21191235]
[1765299757675,0.03097,94381.0,94377.0,0.0105958]
[1765299757885,0.00976,94381.0,94378.0,0.01059568]
[1765299758183,0.00976,94381.0,94371.0,0.2225253]
[1765299758184,0.01059591,94376.0,94371.0,0.2225253]
[1765299758387,0.02094,94375.0,94373.0,0.01059625]
[1765299758626,0.01059613,94374.0,94371.0,0.01059647]
[1765299758831,0.01059714,94365.0,94361.0,0.01059759]
[1765299759056,0.01097601,94365.0,94360.0,0.06358626]
[1765299759251,0.08319299,94361.0,94360.0,0.06358626]
[1765299759633,0.10424186,94361.0,94360.0,0.06358626]
[1765299760527,0.10724186,94361.0,94360.0,0.06458626]
[1765299760935,0.08657186,94361.0,94360.0,0.06458626]
[1765299761119,0.04361887,94361.0,94360.0,0.06458626]
[1765299761319,0.11613642,94361.0,94360.0,0.06458626]
[1765299761578,0.12306186,94361.0,94360.0,0.06458626]
[1765299761806,0.08602186,94361.0,94360.0,0.06458626]
[1765299762006,0.003,94361.0,94360.0,0.06458626]
[1765299762179,0.0427,94361.0,94360.0,0.06458626]
[1765299762378,0.10260186,94361.0,94360.0,0.06358626]
[1765299762628,0.10560186,94361.0,94360.0,0.06458626]
[1765299762828,0.12868984,94361.0,94360.0,0.06458626]
[1765299762967,0.41638984,94361.0,94360.0,0.06358626]
[1765299763163,0.41638984,94361.0,94328.0,0.09351547]
[1765299763164,0.01060006,94339.0,94335.0,0.01060051]
[1765299763407,0.01959,94338.0,94335.0,0.01071868]
[1765299763582,0.02941,94336.0,94335.0,0.00011817]
[1765299763964,0.0508,94336.0,94335.0,0.00011817]
[1765299765366,0.0508,94336.0,94335.0,0.00111817]
[1765299765762,0.11670186,94336.0,94335.0,0.00011817]
[1765299765961,0.13978984,94336.0,94335.0,0.00311817]
[1765299766160,0.13678984,94336.0,94335.0,0.00311817]
[1765299766494,0.21205984,94313.0,94312.0,0.07465186]
[1765299766673,0.21205984,94313.0,94312.0,0.00039412]
[1765299766875,0.25341984,94313.0,94312.0,0.00039412]
[1765299767265,0.33803081,94313.0,94312.0,0.00039412]
[1765299767519,0.62873081,94313.0,94312.0,0.00039412]
[1765299768305,0.64565081,94313.0,94312.0,0.00039412]
[1765299768512,0.10012299,94313.0,94312.0,0.00039412]
[1765299768709,0.11712299,94313.0,94312.0,0.00339412]
[1765299768959,0.12725299,94313.0,94312.0,0.00139412]
[1765299769101,0.13024755,94313.0,94312.0,0.00039412]
[1765299769298,0.13024755,94313.0,94312.0,0.00339412]
[1765299769299,0.09945442,94313.0,94312.0,0.00339412]
[1765299770160,0.08967986,94313.0,94312.0,0.00339412]
[1765299770525,0.06954986,94313.0,94312.0,0.00339412]
[1765299770723,0.06932986,94313.0,94312.0,0.00462812]
[1765299771333,0.2813897,94313.0,94312.0,0.00462812]
[1765299771768,0.2644697,94313.0,94312.0,0.00462812]
[1765299771952,0.05240986,94313.0,94312.0,0.00462812]
[1765299772410,0.001,94313.0,94312.0,0.00462812]
[1765299772609,0.001,94313.0,94311.0,0.21206214]
[1765299772933,0.001,94313.0,94312.0,0.01869842]
[1765299773066,0.001,94313.0,94311.0,0.21218037]
[1765299773460,0.001,94313.0,94312.0,0.12651872]
[1765299773662,0.01692,94326.0,94323.0,0.01060186]
[1765299774098,0.4239104,94360.0,94325.0,0.04303]
[1765299774099,0.02262,94342.0,94325.0,0.04303]
[1765299774305,0.00099999,94360.0,94338.0,0.01060018]
[1765299774306,0.01059905,94348.0,94338.0,0.01060018]
[1765299774502,0.22258557,94346.0,94340.0,0.01059995]
[1765299774671,0.04118,94339.0,94336.0,0.0106004]
[1765299774877,0.04118,94339.0,94336.0,0.22260667]
[1765299775439,0.00938687,94339.0,94337.0,0.2120044]
[1765299775648,0.02751917,94347.0,94342.0,0.01059973]
[1765299775870,0.01731412,94347.0,94343.0,0.01059962]
[1765299776060,0.01731412,94347.0,94344.0,0.0105995]
[1765299776275,0.02791329,94347.0,94343.0,0.01059962]
[1765299776482,0.01731412,94347.0,94344.0,0.0105995]
[1765299776672,0.01059984,94341.0,94336.0,0.0106004]
[1765299776908,0.01059984,94341.0,94325.0,0.03379]
[1765299776909,0.01060096,94331.0,94325.0,0.01060164]
[1765299777040,0.01060096,94331.0,94323.0,0.01060186]
[1765299777240,0.01060096,94331.0,94312.0,0.29716701]
[1765299777241,0.0106013,94328.0,94321.0,0.2907]
[1765299777449,0.01060186,94323.0,94315.0,0.01060276]
[1765299777684,0.01060164,94325.0,94320.0,0.0106022]
[1765299777883,0.01060164,94325.0,94316.0,0.21205155]
[1765299778091,0.01060186,94323.0,94319.0,0.01060231]
[1765299778260,0.02370085,94328.0,94323.0,0.01060186]
[1765299778464,0.02370085,94328.0,94317.0,0.21205045]
[1765299778465,0.01060175,94324.0,94319.0,0.01060231]
[1765299778718,0.23572863,94328.0,94322.0,0.01060198]
[1765299778995,0.01,94325.0,94320.0,0.001]
[1765299779198,0.006,94325.0,94321.0,0.01060209]
[1765299779498,0.01660164,94325.0,94323.0,0.001]
[1765299779798,0.01660164,94325.0,94315.0,0.22265723]
[1765299779799,0.01060175,94324.0,94319.0,0.01060231]
[1765299780009,0.01060186,94323.0,94313.0,0.01060299]
[1765299780169,0.01060209,94321.0,94313.0,0.01060299]
[1765299780364,0.22265253,94318.0,94312.0,0.09570994]
[1765299780550,0.01060243,94318.0,94313.0,0.01060299]
[1765299780749,0.01060265,94316.0,94312.0,0.08510684]
[1765299781008,0.01060254,94317.0,94312.0,0.08510684]
[1765299781313,0.2120409,94322.0,94316.0,0.01060265]
[1765299781472,0.21203591,94324.0,94316.0,0.22265565]
[1765299781885,0.011,94318.0,94316.0,0.01060265]
[1765299782082,0.011,94318.0,94312.0,0.03058989]
[1765299782083,0.01060276,94315.0,94312.0,0.03058989]
[1765299782275,0.04091,94313.0,94312.0,0.03058989]
[1765299782412,0.06299798,94313.0,94312.0,0.03058989]
[1765299782822,0.04091,94313.0,94312.0,0.03058989]
[1765299783042,0.05783,94313.0,94312.0,0.03058989]
[1765299783242,0.07682,94313.0,94312.0,0.03058989]
[1765299783560,0.05783,94313.0,94312.0,0.03058989]
[1765299783760,0.07682,94313.0,94312.0,0.03058989]
[1765299783996,0.05783,94313.0,94312.0,0.03040989]
[1765299784284,0.00846,94321.0,94312.0,0.04101299]
[1765299784431,0.21205864,94314.0,94312.0,0.03040989]
[1765299784637,0.001,94313.0,94312.0,0.03240989]
[1765299784831,0.001,94318.0,94315.0,0.01060276]
[1765299785031,0.00846,94321.0,94318.0,0.22265072]
[1765299785250,0.22263422,94326.0,94318.0,0.22265072]
[1765299785251,0.00812,94329.0,94326.0,0.22263214]
[1765299785469,0.00812,94329.0,94322.0,0.01060198]
[1765299785704,0.01060198,94322.0,94316.0,0.21205139]
[1765299785910,0.02103,94323.0,94313.0,0.01060299]
[1765299786238,0.002,94321.0,94319.0,0.01060231]
[1765299786449,0.002,94321.0,94318.0,0.01660243]
[1765299786564,0.002,94321.0,94318.0,0.22835031]
[1765299786765,0.002,94321.0,94319.0,0.21204472]